Workbook

Sheet Лист1
A1: Школа | D1: МОУ Можаров-Майданская СШ | G1: Утвердил: | H1: должность | I1: директор школы
A2: Типовое примерное меню приготавливаемых блюд | H2: фамилия | I2: Зиновьева Н.А.
A3: Возрастная категория | F3: 7-11 лет | H3: дата | I3: 1
I4: день
A5: День недели | B5: Прием пищи | C5: Раздел меню | D5: Блюда | E5: Вес блюда, г | F5: Белки | G5: Жиры | H5: Углеводы | I5: Калорийность | J5: № рецептуры | K5: Цена
A6: 1 | B6: Завтрак | C6: гор.блюдо | D6: макароны отварные | E6: 150 | F6: 5.5 | G6: 5.8 | H6: 30.5 | I6: 196 | J6: 202
C7: гор.блюдо | D7: курица отварная | E7: 100 | F7: 21.1 | G7: 13.6 | H7: 0.0 | I7: 206 | J7: 637
C8: гор.напиток | D8: чай с сахаром | E8: 200 | F8: 0.1 | G8: 0.0 | H8: 15.2 | I8: 62 | J8: 943
C9: кимломол. | D9: йогурт | E9: 110 | F9: 5.1 | G9: 1.9 | H9: 7.4 | I9: 67
C10: хлеб бел. | D10: хлеб пшеничный | E10: 37.5 | F10: 3.1 | G10: 2.1 | H10: 23.3 | I10: 100
C11: хлеб черн. | D11: хлеб ржаной | E11: 20 | F11: 1.3 | G11: 0.1 | H11: 8.0 | I11: 40
C12: итого | E12: =E6+E7+E11+E9+E10+E8 -> 617.5 | F12: =SUM(F6:F11) -> 36.2 | G12: =SUM(G6:G11) -> 23.5 | H12: =SUM(H6:H11) -> 84.3 | I12: =SUM(I6:I11) -> 671 | K12: 0
A13: =A6 -> 1 | B13: Обед
A21: =A6 -> 1 | B21: Итого за день:
A22: 2 | B22: Завтрак | C22: закуска | D22: салат из свеклы | E22: 100 | F22: 1.4 | G22: 6.1 | H22: 8.4 | I22: 94 | J22: 33
C23: гарнир | D23: греча отварная | E23: 150 | F23: 7.5 | G23: 5.6 | H23: 35.8 | I23: 230 | J23: 679
C24: гор.блюдо | D24: гуляш из говядины | E24: 100 | F24: 14.6 | G24: 16.8 | H24: 2.9 | I24: 221 | J24: 382
C25: напиток | D25: компот из сухофруктов | E25: 200 | F25: 0.7 | G25: 0.1 | H25: 32.0 | I25: 133 | J25: 349
C26: хлеб бел. | D26: хлеб пшеничный | E26: 37.5 | F26: 3.1 | G26: 2.1 | H26: 23.3 | I26: 100
C27: хлеб черн. | D27: хлеб ржаной | E27: 20 | F27: 1.3 | G27: 0.1 | H27: 8.0 | I27: 40
C28: итого | E28: =SUM(E22:E27) -> 607.5 | F28: 28.5 | G28: 30.8 | H28: 110.4 | I28: 818 | K28: 0
A29: =A22 -> 2 | B29: Обед
A36: =A22 -> 2 | B36: Итого за день:
A37: 3 | B37: Завтрак | C37: закуска | D37: салат из квашенной капусты | E37: 100 | F37: 1.6 | G37: 5.0 | H37: 7.7 | I37: 83 | J37: 81
C38: гарнир | D38: Пюре картофельное | E38: 200 | F38: 4.3 | G38: 12.8 | H38: 25.2 | I38: 241 | J38: 128
C39: гор.блюдо | D39: рыба тушеная с овощами | E39: 100 | F39: 9.8 | G39: 5.0 | H39: 3.8 | I39: 105 | J39: 260
C40: гор.напиток | D40: Чай с лимоном | E40: 200 | F40: 0.1 | G40: 0.0 | H40: 15.2 | I40: 62 | J40: 943
C41: хлеб бел. | D41: хлеб пшеничный | E41: 37.5 | F41: 3.1 | G41: 2.1 | H41: 23.3 | I41: 100
C42: хлеб черн. | D42: хлеб ржаной | E42: 20 | F42: 1.3 | G42: 0.1 | H42: 8.0 | I42: 40
C43: итого | E43: =SUM(E37:E42) -> 657.5 | F43: =SUM(F37:F42) -> 20.2 | G43: =SUM(G37:G42) -> 25.0 | H43: =SUM(H37:H42) -> 83.1 | I43: =SUM(I37:I42) -> 631 | K43: 0
A44: =A37 -> 3 | B44: Обед
A53: =A37 -> 3 | B53: Итого за день:
A54: 4 | B54: Завтрак | C54: закуска | D54: салат картофельный с кукурузой и морковью | E54: 60 | F54: 1.8 | G54: 3.8 | H54: 14.2 | I54: 99 | J54: 39
C55: гарнир | D55: рис отварной | E55: 150 | F55: 3.7 | G55: 5.4 | H55: 36.7 | I55: 210 | J55: 304
C56: гор.блюдо | D56: котлета куриная | E56: 85 | F56: 12.5 | G56: 14.1 | H56: 8.4 | I56: 221 | J56: 268
C57: напиток | D57: сок | E57: 200 | F57: 1.0 | G57: 0.0 | H57: 25.4 | I57: 106 | J57: 389
C58: хлеб бел. | D58: хлеб пшеничный | E58: 37.5 | F58: 3.1 | G58: 2.1 | H58: 23.3 | I58: 100
C59: хлеб черн. | D59: хлеб ржаной | E59: 20 | F59: 1.3 | G59: 0.1 | H59: 8.0 | I59: 40
C61: итого | E61: =SUM(E54:E60) -> 552.5 | F61: 23.4 | G61: 25.5 | H61: 116.0 | I61: 774 | K61: 0
A62: =A54 -> 4 | B62: Обед
A69: =A54 -> 4 | B69: Итого за день:
A70: 5 | B70: Завтрак | C70: гор.блюдо | D70: Каша молочная "Дружба" | E70: 200 | F70: 6.2 | G70: 8.6 | H70: 42.7 | I70: 284 | J70: 297
C71: напиток | D71: какао с молоком | E71: 200 | F71: 4.1 | G71: 3.5 | H71: 17.6 | I71: 119 | J71: 382
C72: хлеб бел. | D72: хлеб пшеничный | E72: 37.5 | F72: 3.1 | G72: 2.1 | H72: 23.3 | I72: 100
C73: кисломол. | D73: сыр | E73: 20 | F73: 5.2 | G73: 5.3 | H73: 0.0 | I73: 67
C74: мучные кон.изд. | D74: мучные кондитерские изделия | E74: 50 | F74: 5.0 | G74: 8.0 | H74: 31.0 | I74: 358
C76: итого | E76: =SUM(E70:E74) -> 507.5 | F76: 23.6 | G76: 27.5 | H76: 114.6 | I76: 928 | K76: 0
A77: =A70 -> 5 | B77: Обед
A84: =A70 -> 5 | B84: Итого за день:
A85: 6 | B85: Завтрак | C85: гарнир | D85: греча отварная | E85: 150 | F85: 7.5 | G85: 5.6 | H85: 35.8 | I85: 230 | J85: 679
C86: гор.блюдо | D86: гуляш из кур | E86: 80 | F86: 19.6 | G86: 17.9 | H86: 4.8 | I86: 168 | J86: 260
C87: напиток | D87: кисель из сока | E87: 200 | F87: 0.2 | G87: 0.0 | H87: 37.4 | I87: 146 | J87: 359
C88: хлеб бел. | D88: хлеб пшеничный | E88: 37.5 | F88: 3.1 | G88: 2.1 | H88: 23.3 | I88: 100
C89: хлеб черн. | D89: хлеб ржаной | E89: 20 | F89: 1.3 | G89: 0.1 | H89: 8.0 | I89: 40
C90: сладкое | D90: зефир | E90: 50 | F90: 0.4 | G90: 0.0 | H90: 39.3 | I90: 152
C91: итого | E91: =SUM(E85:E90) -> 537.5 | F91: 32.1 | G91: 25.7 | H91: 148.5 | I91: 837 | K91: 0
A92: 6 | B92: Обед
A100: =A85 -> 6 | B100: Итого за день:
A101: 7 | B101: Завтрак | C101: закуска | D101: винегрет | E101: 100 | F101: 1.4 | G101: 10.1 | H101: 6.8 | I101: 124 | J101: 67
C102: гарнир | D102: макароны отварные | E102: 150 | F102: 5.5 | G102: 5.8 | H102: 30.5 | I102: 196 | J102: 202
C103: гор.блюдо | D103: котлета из говядины | E103: 100 | F103: 16.5 | G103: 24.2 | H103: 14.3 | I103: 344 | J103: 268
C104: гор.напиток | D104: чай с сахаром | E104: 200 | F104: 0.1 | G104: 0.0 | H104: 15.2 | I104: 62 | J104: 943
C105: хлеб бел. | D105: хлеб пшеничный | E105: 37.5 | F105: 3.1 | G105: 2.1 | H105: 23.3 | I105: 100
C106: хлеб черн. | D106: хлеб ржаной | E106: 20 | F106: 1.3 | G106: 0.1 | H106: 8.0 | I106: 40
C108: итого | E108: =SUM(E101:E107) -> 607.5 | F108: 27.9 | G108: 42.3 | H108: 98.1 | I108: 866 | K108: 0
A109: 7 | B109: Обед
A117: =A101 -> 7 | B117: Итого за день:
A118: 8 | B118: Завтрак | C118: закуска | D118: ватрушка с творогом или повидлом | E118: 100 | F118: 12.5 | G118: 6.7 | H118: 44.5 | I118: 286
C119: гарнир | D119: Пюре картофельное | E119: 200 | F119: 4.3 | G119: 12.8 | H119: 25.2 | I119: 241 | J119: 128
C120: гор.блюдо | D120: курица отварная | E120: 100 | F120: 21.1 | G120: 13.6 | H120: 0.0 | I120: 206 | J120: 637
C121: кисломол. | D121: кефир | E121: 200 | F121: 5.8 | G121: 5.0 | H121: 8.0 | I121: 106 | J121: 966
C122: хлеб бел. | D122: хлеб пшеничный | E122: 37.5 | F122: 3.1 | G122: 2.1 | H122: 23.3 | I122: 100
C123: хлеб черн. | D123: хлеб ржаной | E123: 20 | F123: 1.3 | G123: 0.1 | H123: 8.0 | I123: 40
C125: итого | E125: =SUM(E118:E124) -> 657.5 | F125: 48.2 | G125: 40.3 | H125: 109.0 | I125: 980 | K125: 0
A126: 8 | B126: Обед
A133: =A119 -> 0 | B133: Итого за день:
A134: 9 | B134: Завтрак | C134: гарнир | D134: рис отварной | E134: 150 | F134: 3.7 | G134: 5.4 | H134: 36.7 | I134: 210 | J134: 304
C135: гор.блюдо | D135: голубцы ленивые | E135: 100 | F135: 8.4 | G135: 7.6 | H135: 7.4 | I135: 128 | J135: 54-3м
C136: гор.напиток | D136: Чай с лимоном | E136: 200 | F136: 0.1 | G136: 0.0 | H136: 15.2 | I136: 62 | J136: 943
C137: хлеб бел. | D137: хлеб пшеничный | E137: 37.5 | F137: 3.1 | G137: 2.1 | H137: 23.3 | I137: 100
C138: хлеб черн. | D138: хлеб ржаной | E138: 20 | F138: 1.3 | G138: 0.1 | H138: 8.0 | I138: 40
C140: итого | E140: =SUM(E134:E139) -> 507.5 | F140: 16.6 | G140: 15.2 | H140: 90.6 | I140: 540 | K140: 0
A141: 9 | B141: Обед
A148: =A134 -> 9 | B148: Итого за день:
A149: 10 | B149: Завтрак | C149: гор.блюдо | D149: каша манная | E149: 200 | F149: 6.1 | G149: 10.7 | H149: 32.4 | I149: 251 | J149: 181
C150: напиток | D150: кофейный напиток | E150: 200 | F150: 3.2 | G150: 2.7 | H150: 15.9 | I150: 101 | J150: 379
C151: фрукт | D151: Фрукты свежие | E151: 100 | F151: 0.4 | G151: 0.4 | H151: 9.8 | I151: 47 | J151: 338
C152: хлеб бел. | D152: хлеб пшеничный | E152: 37.5 | F152: 3.1 | G152: 2.1 | H152: 23.3 | I152: 100
E154: =SUM(E149:E153) -> 537.5 | F154: 12.8 | G154: 15.9 | H154: 81.4 | I154: 499 | K154: 0
A155: 10 | B155: Обед
A163: =A149 -> 10 | B163: Итого за день:
